bitfinex-derivatives/quotes_ETHF0:USTF0_20250701
["timestamp","ask_amount","ask_price","bid_price","bid_amount"]
[1751376765172,0.96199609,2443.7,2443.6,0.81817]
[1751376765472,2.30557252,2443.8,2443.6,0.81814]
[1751376765673,2.30557252,2443.8,2443.7,0.81814]
[1751376765878,1.64367252,2443.8,2443.7,0.81814]
[1751376766076,1.64367252,2443.8,2443.5,5.75546263]
[1751376766282,1.64367252,2443.8,2443.7,0.81814]
[1751376766873,0.6859,2443.8,2443.7,0.81814]
[1751376767071,0.97947758,2444.0,2443.9,0.81807]
[1751376767272,0.7117,2444.1,2443.7,0.81814]
[1751376767470,1.52972,2444.1,2443.8,0.81808]
[1751376767682,1.52972,2444.1,2443.8,0.81809]
[1751376767868,1.71062374,2444.1,2443.9,0.81806]
[1751376768074,3.12322374,2444.1,2443.6,9.11989263]
[1751376768274,3.12322374,2444.1,2443.9,0.81807]
[1751376768477,0.6651,2444.2,2444.1,0.81801]
[1751376769080,0.6651,2444.2,2444.0,0.81801]
[1751376769379,1.48309,2444.2,2444.0,0.81801]
[1751376769582,0.6651,2444.2,2443.6,3.36443]
[1751376769775,1.48307,2444.2,2444.0,0.81803]
[1751376770175,1.48307,2444.2,2443.9,0.81805]
[1751376770377,0.81801,2444.1,2443.9,0.81805]
[1751376770577,0.81805,2444.0,2443.6,1.319]
[1751376770882,1.3926,2444.1,2443.8,0.8181]
[1751376771083,2.04511,2444.0,2443.4,0.653]
[1751376771272,0.81816,2443.7,2443.5,0.81819]
[1751376771471,0.6797,2443.6,2443.5,0.81819]
[1751376771876,1.00163633,2444.2,2443.6,2.04544]
[1751376772183,0.6797,2444.3,2443.7,5.75546263]
[1751376772380,2.95747873,2444.3,2443.7,7.06786263]
[1751376772577,0.81797,2444.2,2443.7,7.06786263]
[1751376772881,3.77543873,2444.3,2444.1,0.81801]
[1751376773480,0.81797,2444.2,2444.0,0.81803]
[1751376773684,3.77544873,2444.3,2443.7,9.11321263]
[1751376773988,0.81797,2444.2,2444.0,0.81802]
[1751376774583,1.0577676,2444.1,2444.0,0.81802]
[1751376774887,1.8757876,2444.1,2443.9,0.81805]
[1751376775086,1.8758076,2444.0,2443.8,0.81808]
[1751376775286,1.0577676,2443.9,2443.8,0.81808]
[1751376775878,2.18431,2444.1,2443.9,0.81806]
[1751376776083,1.0576399,2444.0,2443.9,0.81806]
[1751376777185,1.0576399,2444.0,2443.7,7.80082263]
[1751376777186,1.8756799,2444.0,2443.8,0.81808]
[1751376777385,0.81804,2444.0,2443.8,0.81808]
[1751376777587,0.81803,2444.1,2443.9,0.81807]
[1751376777790,1.87496321,2444.0,2443.8,0.81809]
[1751376777980,0.81802,2444.1,2443.7,5.75546263]
[1751376778182,1.05662367,2444.0,2443.9,0.81806]
[1751376778890,1.05660475,2444.0,2443.6,1.4498]
[1751376779083,3.00757873,2444.3,2444.2,0.81797]
[1751376779283,4.0639392,2444.3,2443.9,2.04519]
[1751376779582,3.00757873,2444.3,2444.2,0.81797]
[1751376779786,4.06389496,2444.3,2444.2,0.81797]
[1751376780488,1.05631623,2444.3,2444.2,0.81797]
[1751376780884,3.25514665,2445.1,2444.9,0.81771]
[1751376781191,1.4066,2445.1,2445.0,0.81771]
[1751376781691,3.19183268,2445.1,2444.6,7.79999263]
[1751376781986,3.19183268,2445.1,2444.9,0.81774]
[1751376782187,2.37415268,2445.1,2444.6,7.79999263]
[1751376782391,3.19182268,2445.1,2444.8,0.81775]
[1751376782687,3.19182268,2445.1,2444.7,2.0445]
[1751376782688,2.37415268,2445.1,2444.7,2.0445]
[1751376782888,2.37415268,2445.1,2445.0,0.81771]
[1751376783089,3.19184268,2445.1,2444.8,0.81775]
[1751376783290,2.37415268,2445.1,2444.6,7.79999263]
[1751376783489,2.37415268,2445.1,2445.0,0.81771]
[1751376783690,2.37415268,2445.1,2444.8,0.81775]
[1751376783990,3.19185268,2445.1,2444.9,0.81772]
[1751376784184,2.37415268,2445.1,2445.0,0.81771]
[1751376784491,3.19185268,2445.1,2444.8,0.81775]
[1751376784685,3.19185268,2445.1,2444.8,0.81776]
[1751376784990,0.81782,2444.7,2444.5,0.81787]
[1751376785290,0.81784,2444.6,2444.4,0.81788]
[1751376785488,0.6889,2444.5,2444.4,0.81788]
[1751376786087,2.46704268,2445.1,2444.5,2.04463]
[1751376786385,0.6889,2445.0,2444.9,0.81771]
[1751376786586,0.6889,2445.0,2444.5,2.04463]
[1751376786789,0.81775,2444.9,2444.7,0.8178]
[1751376786986,1.50662,2445.0,2444.5,2.04469]
[1751376787181,0.6889,2445.0,2444.8,0.81776]
[1751376787390,0.6889,2445.0,2444.7,0.81779]
[1751376787584,0.81782,2444.7,2444.5,0.81787]
[1751376787786,0.8178,2444.8,2444.5,0.81786]
[1751376787980,6.44436263,2445.0,2444.1,4.05917]
[1751376788187,0.81782,2444.7,2444.2,2.04493]
[1751376788388,0.81779,2444.8,2444.6,0.81784]
[1751376788693,0.81781,2444.7,2444.5,0.81785]
[1751376789091,0.81784,2444.6,2444.4,0.81788]
[1751376789692,0.81784,2444.6,2444.3,0.81792]
[1751376789891,0.81791,2444.4,2444.2,5.75546263]
[1751376790190,0.81795,2444.3,2444.1,0.818]
[1751376790392,0.7228,2444.2,2444.1,0.818]
[1751376792196,0.7228,2444.2,2443.7,58.928]
[1751376792487,1.54078,2444.2,2443.7,58.928]
[1751376792697,0.7228,2444.2,2443.9,0.81805]
[1751376792897,1.54079,2444.2,2443.9,0.81805]
[1751376793195,0.81801,2444.1,2443.8,0.81808]
[1751376793384,0.7228,2444.2,2443.8,0.8181]
[1751376793588,0.7228,2444.2,2443.7,64.68346263]
[1751376793787,1.54079,2444.2,2443.9,0.81806]
[1751376794090,0.7228,2444.2,2443.7,66.72880263]
[1751376794295,0.7228,2444.2,2444.1,0.81801]
[1751376795291,0.7228,2444.2,2444.0,6.57348263]
[1751376795491,0.7228,2444.2,2444.1,0.81801]
[1751376795694,1.54079,2444.2,2443.9,0.81805]
[1751376795999,1.54078,2444.2,2443.9,0.81805]
[1751376796894,0.7228,2444.2,2444.1,0.81801]
[1751376798799,0.7228,2444.2,2444.0,0.81802]
[1751376798999,0.7228,2444.2,2444.1,0.81801]
[1751376799898,0.7228,2444.2,2444.1,6.57347263]
[1751376800198,1.4483,2444.6,2444.5,0.81787]
[1751376800500,0.6883,2444.8,2444.7,0.81781]
[1751376800698,0.6883,2444.8,2444.6,0.81782]
[1751376801391,2.0767,2444.8,2444.7,0.81781]
[1751376802597,0.6883,2444.8,2444.7,0.81781]
[1751376805005,0.6883,2444.8,2444.7,6.57327263]
[1751376805809,0.7018,2445.0,2444.9,0.81774]
[1751376807400,0.6648,2445.3,2445.2,0.81764]
[1751376808705,0.6648,2445.3,2445.0,5.75546263]
[1751376808706,1.25920627,2445.3,2445.0,5.75546263]
[1751376808902,1.3267,2445.2,2444.7,11.759]
[1751376809096,1.3267,2445.2,2444.9,0.81774]
[1751376809305,1.47698,2445.1,2444.9,0.81774]
[1751376809500,1.3267,2445.0,2444.9,0.81774]
[1751376809802,0.6593,2445.1,2445.0,0.81771]
[1751376810308,1.25920627,2445.3,2445.2,0.81764]
[1751376810808,0.6648,2445.3,2445.2,6.57310263]
[1751376811105,1.47683,2445.6,2445.2,5.75546263]
[1751376811306,1.74792474,2445.5,2445.4,0.81757]
[1751376811606,2.33555967,2445.5,2445.4,0.81757]
[1751376812006,1.29423493,2445.5,2445.3,0.81758]
[1751376813103,0.7066,2445.5,2445.3,0.81758]
[1751376813303,2.92234,2445.5,2445.3,0.81759]
[1751376813504,2.92234,2445.5,2445.2,5.75546263]
[1751376813704,2.1048,2445.5,2445.3,0.81759]
[1751376814006,2.92234,2445.5,2445.3,0.81759]
[1751376814200,2.1048,2445.5,2445.4,0.81757]
[1751376814505,2.92235,2445.5,2445.3,0.81758]
[1751376814702,2.1048,2445.5,2445.3,0.81758]
[1751376814901,2.1048,2445.5,2445.4,0.81757]
[1751376815107,0.7066,2445.5,2445.4,0.81757]
[1751376816303,1.3235,2446.0,2445.4,2.04393]
[1751376816608,2.14088,2446.0,2445.8,5.75546263]
[1751376816916,1.90173498,2446.0,2445.8,5.75546263]
[1751376817202,1.3235,2446.0,2445.9,0.8174]
[1751376817502,2.0427,2446.9,2446.3,0.81726]
[1751376817706,0.81721,2446.5,2446.3,5.75546263]
[1751376817902,1.53689,2446.6,2446.3,6.57273263]
[1751376818100,1.53689,2446.6,2446.4,0.81724]
[1751376818101,1.3647,2446.5,2446.4,0.81724]
[1751376818298,4.06547729,2447.9,2446.3,2.04316]
[1751376818503,0.81701,2447.1,2446.7,5.75546263]
[1751376818796,0.81701,2447.1,2446.4,3.35788]
[1751376818797,0.7197,2447.2,2446.6,0.81714]
[1751376819001,1.3647,2447.0,2446.7,0.81713]
[1751376819203,1.3647,2447.0,2446.5,18.32765263]
[1751376819408,0.81709,2446.9,2446.5,6.57264263]
[1751376819597,1.9457611,2447.0,2446.4,13.88701]
[1751376819803,0.81708,2446.9,2446.5,0.81717]
[1751376820104,0.5810611,2447.0,2446.4,0.81722]
[1751376820303,1.3849,2446.9,2446.3,18.32772263]
[1751376820504,0.81715,2446.7,2446.4,0.81723]
[1751376820801,0.81718,2446.6,2446.2,6.57275263]
[1751376820999,0.7014,2446.6,2446.2,17.51046263]
[1751376821207,0.7014,2446.6,2446.5,6.57266263]
[1751376821405,1.3849,2446.9,2446.5,5.75546263]
[1751376821604,0.7014,2446.9,2446.5,5.75546263]
[1751376821803,0.7014,2446.9,2446.8,0.8171]
[1751376822003,0.7014,2446.9,2446.8,6.57256263]
[1751376822204,0.7014,2446.9,2446.6,5.75546263]
[1751376822505,0.7014,2446.9,2446.8,0.8171]
[1751376822705,0.7014,2446.9,2446.7,0.81714]
[1751376822907,0.7014,2446.9,2446.3,1.416]
[1751376823107,0.81715,2446.7,2446.4,0.81723]
[1751376823402,2.0726,2446.8,2446.7,0.81714]
[1751376823602,0.81699,2447.2,2446.6,5.75546263]
[1751376823808,0.81705,2447.0,2446.7,0.81712]
[1751376824007,0.7023,2447.2,2446.9,0.81704]
[1751376824203,0.7023,2447.2,2447.1,0.817]
[1751376824408,0.7023,2447.2,2446.7,19.55129263]
[1751376824409,0.7023,2447.2,2447.0,0.817]
[1751376824602,0.7023,2447.2,2446.7,18.91846263]
[1751376824808,0.817,2447.1,2446.8,0.81709]
[1751376825010,2.0115,2447.2,2446.4,58.876]
[1751376825214,1.3092,2447.0,2446.4,96.001]
[1751376825411,3.35183,2447.0,2446.4,58.876]
[1751376825808,0.81718,2446.6,2446.4,58.876]
[1751376826013,0.7023,2446.5,2446.0,8.45027263]
[1751376826313,0.7023,2446.5,2446.0,11.752]
[1751376826511,0.81731,2446.2,2446.0,12.56936]
[1751376826709,1.4146,2446.1,2445.9,0.81739]
[1751376827011,0.8174,2446.0,2445.7,59.68546]
[1751376827213,1.4146,2445.9,2445.7,58.868]
[1751376827415,0.6652,2445.8,2445.7,59.68546]
[1751376827811,0.6652,2445.8,2445.3,0.6515]
[1751376828017,1.4146,2445.7,2445.5,0.81754]
[1751376828217,1.4146,2445.7,2445.6,0.8175]
[1751376828416,0.6652,2445.8,2445.4,25.396]
[1751376828417,0.6652,2445.8,2445.4,31.15146263]
[1751376828616,0.6652,2445.8,2445.7,0.81747]
[1751376828915,2.115,2446.2,2445.7,5.75546263]
[1751376829111,2.7802,2446.2,2445.7,5.75546263]
[1751376829318,2.7802,2446.2,2445.7,0.81746]
[1751376829518,0.81736,2446.1,2445.7,25.409]
[1751376829717,2.15597,2446.0,2445.8,0.81743]
[1751376829916,2.15597,2446.0,2445.7,26.22646]
[1751376830117,1.3386,2446.0,2445.8,0.81742]
[1751376830317,2.15597,2446.0,2445.8,0.81742]
[1751376830719,2.15597,2446.0,2445.7,0.81745]
[1751376830915,2.15597,2446.0,2445.8,0.81743]
[1751376831114,1.3386,2446.0,2445.9,0.8174]
[1751376831315,2.18292,2446.2,2446.0,0.81736]
[1751376831521,1.3656,2446.2,2445.8,0.81743]
[1751376831826,0.81737,2446.0,2445.7,26.21945]
[1751376832325,0.81737,2446.0,2445.8,0.81743]
[1751376832825,2.15596,2446.1,2445.9,0.8174]
[1751376833021,1.3386,2446.1,2445.7,25.395]
[1751376833321,1.3386,2446.1,2446.0,0.81737]
[1751376833923,2.15596,2446.1,2445.7,31.15046263]
[1751376834126,0.81738,2446.0,2445.8,26.21341]
[1751376834321,1.3445,2446.0,2445.9,0.8174]
[1751376834528,1.3445,2446.0,2445.8,26.21341]
[1751376834722,2.16188,2446.0,2445.8,26.21341]
[1751376834921,2.16188,2446.0,2445.7,0.81745]
[1751376835121,1.3445,2446.0,2445.6,26.21048]
[1751376835324,1.3445,2446.0,2445.7,0.81747]
[1751376835521,1.3445,2446.0,2445.8,0.81744]
[1751376835726,2.16188,2446.0,2445.6,25.393]
[1751376835926,1.3445,2446.0,2445.9,0.8174]
[1751376836427,1.3656,2446.2,2446.0,0.81735]
[1751376836729,2.18292,2446.2,2446.0,0.81735]
[1751376836929,1.4308,2446.1,2446.0,0.81735]
[1751376837127,1.4308,2446.1,2446.0,0.81737]
[1751376837630,1.4308,2446.1,2445.9,0.81738]
[1751376837830,1.4308,2446.1,2446.0,0.81737]
[1751376838327,1.4308,2446.1,2445.6,28.83906]
[1751376838328,1.4308,2446.1,2445.6,7.15776263]
[1751376838629,2.24815,2446.1,2445.9,0.8174]
[1751376838930,1.4308,2446.1,2446.0,0.81737]
[1751376839325,1.3656,2446.2,2445.8,2.04359]
[1751376839526,1.3656,2446.2,2446.0,0.81736]
[1751376839825,1.3656,2446.2,2445.9,0.81738]
[1751376839826,2.18292,2446.2,2445.9,0.81738]
[1751376840032,1.3656,2446.2,2445.7,37.205]
[1751376840231,0.6652,2446.2,2446.1,0.81734]
[1751376840430,1.48251,2446.2,2445.9,5.75546263]
[1751376840632,1.48251,2446.2,2445.9,6.57284263]
[1751376840933,0.6652,2446.2,2446.1,0.81734]
[1751376842332,0.6652,2446.2,2445.9,31.12646263]
[1751376842533,0.6652,2446.2,2446.1,0.81734]
[1751376845133,0.6652,2446.2,2446.0,0.81737]
[1751376845134,1.48253,2446.2,2446.0,0.81737]
[1751376845431,2.23174,2446.1,2445.7,7.79916263]
[1751376845627,2.89875,2446.1,2445.9,0.81738]
[1751376845835,2.0814,2446.1,2445.8,25.349]
[1751376846035,2.89877,2446.1,2445.9,0.8174]
[1751376846228,0.81738,2446.0,2445.9,0.8174]
[1751376846429,1.4144,2446.0,2445.9,0.8174]
[1751376846727,2.23178,2446.0,2445.9,0.8174]
[1751376846927,1.4144,2446.0,2445.9,0.8174]
[1751376847134,2.23178,2446.0,2445.9,0.8174]
[1751376847637,0.81743,2445.9,2445.8,0.81744]
[1751376847832,2.26133,2445.9,2445.8,0.81744]
[1751376848033,2.26133,2445.9,2445.7,26.15446]
[1751376848236,1.4439,2445.9,2445.8,0.81744]
[1751376849734,0.667,2446.1,2446.0,0.81737]
[1751376850530,0.6652,2446.2,2446.1,0.81734]
[1751376851531,2.0694,2446.5,2446.4,0.81724]
[1751376851532,0.6914,2446.5,2446.4,0.81724]
[1751376851726,0.716,2446.8,2446.7,0.81714]
[1751376851927,1.73384036,2446.8,2446.7,0.81714]
[1751376852634,1.73384036,2446.8,2446.2,7.79869263]
[1751376852837,2.39584036,2446.7,2446.3,27.37019]
[1751376853035,0.81726,2446.4,2445.9,61.56622]
[1751376853236,0.81722,2446.5,2446.3,0.81727]
[1751376853433,1.01863514,2446.4,2446.2,0.81729]
[1751376853635,0.81725,2446.4,2446.1,0.81732]
[1751376854240,0.6914,2446.6,2445.9,91.99098263]
[1751376854437,0.81725,2446.4,2446.2,0.8173]
[1751376854635,0.81728,2446.3,2446.1,0.81733]
[1751376854834,2.73437,2446.6,2446.0,0.81736]
[1751376855037,0.6839,2446.2,2446.1,0.81733]
[1751376855334,0.6839,2446.2,2445.9,84.199]
[1751376855637,0.6839,2446.2,2445.7,13.85569]
[1751376855638,1.50123,2446.2,2445.7,13.85569]
[1751376855828,0.6999,2446.1,2446.0,0.81738]
[1751376857237,0.6999,2446.1,2445.7,2.04368]
[1751376857535,0.6999,2446.1,2445.6,11.812]
[1751376857734,0.81739,2446.0,2445.6,11.812]
[1751376857937,0.81739,2446.0,2445.9,0.81741]
[1751376858137,1.51727,2446.1,2445.9,0.81741]
[1751376858438,1.51727,2446.1,2446.0,0.81738]
[1751376858439,0.6999,2446.1,2446.0,0.81738]
[1751376859528,1.51724,2446.1,2446.0,0.81738]
[1751376859833,1.51727,2446.1,2445.9,0.81739]
[1751376860138,0.6999,2446.1,2445.7,25.333]
[1751376860437,0.6999,2446.1,2446.0,0.81738]
[1751376861132,0.6839,2446.2,2445.8,7.79908263]
[1751376861133,0.6839,2446.2,2446.1,0.81734]
[1751376862332,1.50121,2446.2,2446.0,0.81736]
[1751376863138,0.6839,2446.2,2446.1,0.81734]
[1751376863334,1.50121,2446.2,2446.1,0.81734]
[1751376863534,2.04296,2446.6,2445.8,7.79908263]
[1751376863737,1.7220744,2446.5,2446.3,0.81726]
[1751376863938,0.81728,2446.3,2446.2,0.8173]
[1751376864140,1.52127,2446.4,2446.2,0.8173]
[1751376864640,1.52127,2446.4,2446.3,0.81728]
[1751376864941,2.53627706,2446.4,2446.3,0.81728]
[1751376865140,1.71900706,2446.4,2446.3,0.81728]
[1751376865341,0.707,2446.5,2446.4,0.81724]
[1751376865541,1.72193469,2446.5,2446.4,0.81724]
[1751376866139,1.72193469,2446.5,2446.0,2.69495]
[1751376866343,0.8173,2446.3,2446.1,0.81734]
[1751376866539,0.81731,2446.2,2445.7,7.79911263]
[1751376866842,0.81735,2446.1,2445.9,0.81738]
[1751376867039,2.25895,2446.1,2445.9,0.81738]
[1751376867243,1.4416,2446.1,2446.0,0.81738]
[1751376867443,2.25894,2446.1,2445.9,0.81739]
[1751376867644,1.4416,2446.1,2445.8,0.81743]
[1751376867942,0.81746,2445.8,2445.7,0.81747]
[1751376868145,0.81748,2445.7,2445.6,0.8175]
[1751376868348,0.81748,2445.7,2445.4,3.24062951]
[1751376868349,2.25904,2445.9,2445.7,0.81747]
[1751376868544,1.4416,2445.9,2445.8,0.81744]
[1751376868841,0.7179,2446.2,2446.0,0.81736]
[1751376869141,0.81734,2446.1,2446.0,0.81736]
[1751376869348,2.26994,2446.1,2446.0,0.81736]
[1751376869545,2.26994,2446.1,2445.6,37.09]
[1751376869546,2.46750092,2446.1,2445.6,37.09]
[1751376869742,1.83230092,2446.0,2445.8,0.81742]
[1751376869942,2.27001,2445.9,2445.8,0.81742]
[1751376870139,2.27001,2445.9,2445.6,37.09]
[1751376870140,2.04362,2445.8,2445.3,0.8176]
[1751376870340,0.81757,2445.5,2445.3,0.81759]
[1751376870538,2.1604,2445.4,2445.3,0.81759]
[1751376870738,1.1604,2445.4,2445.2,2.0145771]
[1751376870949,0.1604,2445.4,2445.1,11.769]
[1751376871145,0.81762,2445.3,2445.1,0.81766]
[1751376871340,0.81764,2445.3,2445.1,0.81766]
[1751376871540,5.75546263,2445.8,2445.2,0.81763]
[1751376871848,0.81761,2445.3,2445.2,0.81763]
[1751376872450,0.81765,2445.2,2445.1,0.81766]
[1751376872649,2.04384,2445.6,2444.8,4.13513]
[1751376872650,0.8177,2445.1,2445.0,0.8177]
[1751376873151,0.81766,2445.2,2445.1,0.81766]
[1751376873450,0.81763,2445.3,2445.2,0.81763]
[1751376873645,0.81764,2445.3,2445.2,0.81764]
[1751376873854,0.81765,2445.2,2445.1,0.81765]
[1751376874452,4.04028,2445.5,2444.8,27.4105]
[1751376874647,2.04404,2445.3,2444.7,11.771]
[1751376874844,0.81777,2444.9,2444.8,0.81779]
[1751376875049,3.43962,2445.2,2444.3,2.04482]
[1751376875050,2.04433,2445.0,2444.3,2.04482]
[1751376875349,0.81787,2444.6,2444.5,0.81787]
[1751376875546,0.81787,2444.6,2444.4,0.8179]
[1751376875748,0.81788,2444.6,2444.4,0.81792]
[1751376876053,2.04454,2444.7,2444.0,5.75546263]
[1751376876245,0.81794,2444.4,2444.2,0.81798]
[1751376876554,1.3954,2444.5,2444.3,0.81794]
[1751376876754,2.21331,2444.5,2444.3,0.81794]
[1751376876950,1.3954,2444.5,2444.4,0.81791]
[1751376877150,2.21328,2444.5,2444.4,0.81791]
[1751376877349,2.21328,2444.5,2444.1,2.04502]
[1751376877550,1.3954,2444.5,2444.1,2.04502]
[1751376877750,0.81789,2444.5,2444.3,0.81794]
[1751376877952,0.81787,2444.6,2444.1,1.4]
[1751376878152,0.698,2444.8,2444.3,5.75546263]
[1751376878350,0.698,2444.8,2444.7,0.81781]
[1751376878549,1.3587,2445.1,2444.6,5.75546263]
[1751376878751,1.53875,2445.2,2444.9,5.75546263]
[1751376879050,1.53875,2445.2,2445.1,0.81768]
[1751376879051,0.7211,2445.2,2445.1,0.81768]
[1751376879249,0.53470228,2445.3,2444.9,7.79982263]
[1751376879444,0.81759,2445.4,2445.1,0.81767]
[1751376879853,2.17629,2445.4,2445.1,0.81767]
[1751376880049,1.3587,2445.4,2444.9,5.75546263]
[1751376880251,2.1763,2445.4,2445.2,0.81766]
[1751376880451,0.52597849,2445.4,2445.3,0.81763]
[1751376880653,1.01717527,2445.4,2445.3,0.81763]
[1751376881247,0.7211,2445.5,2445.4,0.81759]
[1751376881450,1.24691749,2445.5,2445.3,0.81761]
[1751376882158,1.24691749,2445.5,2445.2,6.57311263]
[1751376882357,0.81764,2445.3,2444.9,17.52846263]
[1751376882659,0.81762,2445.4,2445.1,0.81768]
[1751376882859,1.50534,2445.3,2444.8,13.0981]
[1751376883161,1.50534,2445.3,2445.1,0.81768]
[1751376883359,0.6877,2445.3,2445.2,0.81766]
[1751376884463,2.06449749,2445.5,2445.0,2.0443]
[1751376884658,0.7185,2445.4,2445.3,0.81761]
[1751376884861,0.81746,2445.8,2445.2,7.79956263]
[1751376885162,1.4132,2445.8,2445.6,0.81751]
[1751376885461,1.95422317,2445.8,2445.3,3.49014]
[1751376885656,2.77169317,2445.8,2445.6,0.8175]
[1751376886157,1.95422317,2445.8,2445.7,0.81747]
[1751376886761,1.4132,2445.8,2445.7,0.81747]
[1751376887858,1.4132,2445.8,2445.6,0.81749]
[1751376888057,1.4132,2445.8,2445.5,0.6782]
[1751376888359,1.4132,2445.8,2445.7,0.81747]
[1751376889861,1.4132,2445.8,2445.3,7.20156263]
[1751376889862,0.81748,2445.7,2445.3,7.20156263]
[1751376890061,0.81748,2445.7,2445.5,0.81752]
[1751376890263,2.806,2445.8,2445.7,0.81747]
[1751376890564,3.62344,2445.8,2445.6,0.81748]
[1751376890958,3.62347,2445.8,2445.6,0.81751]
[1751376891158,2.806,2445.8,2445.7,0.81747]
[1751376891861,1.4132,2445.8,2445.6,0.81748]
[1751376892061,1.4132,2445.8,2445.5,0.81752]
[1751376892364,3.62344,2445.8,2445.4,3.36084]
[1751376892559,0.81749,2445.7,2445.5,0.81752]
[1751376892762,1.3928,2445.7,2445.6,0.81751]
[1751376893162,1.4132,2445.8,2445.7,0.81747]
[1751376893956,0.7185,2445.8,2445.7,0.81747]
[1751376894159,0.6554,2446.2,2446.1,0.81734]
[1751376894459,1.67236435,2446.2,2446.1,0.81734]
[1751376894763,2.22162553,2446.2,2446.1,0.81734]
[1751376895758,2.22162553,2446.2,2445.7,9.24084263]
[1751376895959,1.01696435,2446.1,2446.0,0.81737]
[1751376896157,1.83430435,2446.1,2445.9,0.81738]
[1751376896469,1.83433435,2446.0,2445.9,0.81738]
[1751376896854,1.01696435,2446.0,2445.9,0.81738]
[1751376897260,1.83433435,2446.0,2445.9,0.81738]
[1751376897463,1.01696435,2446.0,2445.9,0.81738]
[1751376897658,1.83433435,2446.0,2445.9,0.81738]
[1751376897859,0.81741,2445.9,2445.8,0.81742]
[1751376898059,1.83439435,2445.9,2445.8,0.81744]
[1751376898254,0.81745,2445.8,2445.7,0.81745]
[1751376898459,2.15935,2445.8,2445.7,0.81745]
[1751376898958,1.3419,2445.8,2445.7,0.81745]
[1751376900165,0.6696,2445.8,2445.7,0.81745]
[1751376900960,0.6885,2446.1,2446.0,0.81737]
[1751376901265,1.7072188,2446.1,2445.9,0.81738]
[1751376901566,1.0187188,2446.0,2445.9,6.57287263]
[1751376901758,1.0187188,2446.0,2445.8,0.81742]
[1751376901962,0.6885,2446.1,2445.7,9.93705263]
[1751376902159,1.83602911,2446.0,2445.7,0.81744]
[1751376902360,1.01865911,2445.9,2445.7,0.81744]
[1751376902667,2.81607,2446.1,2445.8,0.81744]
[1751376902860,1.01863277,2446.0,2445.8,0.81743]
[1751376903163,2.81606,2446.1,2445.8,0.81743]
[1751376903365,2.32877619,2446.0,2445.8,0.81743]
[1751376903564,1.3102,2446.0,2445.8,0.81743]
[1751376903967,1.3102,2446.0,2445.5,13.81582]
[1751376903968,1.3102,2446.0,2445.9,0.81741]
[1751376904169,2.3287191,2446.0,2445.8,0.81742]
[1751376904359,1.3102,2446.0,2445.8,0.81742]
[1751376904669,0.81758,2445.4,2445.0,0.81769]
[1751376904871,1.4089,2445.3,2445.1,0.81765]
[1751376905365,1.4089,2445.3,2445.0,0.81768]
[1751376905563,1.4089,2445.3,2444.8,17.52746263]
[1751376905761,1.4089,2445.3,2445.2,0.81764]
[1751376906263,1.4089,2445.3,2445.1,0.81765]
[1751376906464,1.4089,2445.3,2445.2,0.81764]
[1751376907266,1.4089,2445.3,2445.1,6.57313263]
[1751376907660,1.4089,2445.3,2445.2,0.81766]
[1751376908362,1.4089,2445.3,2445.1,5.75546263]
[1751376908568,1.4089,2445.3,2445.2,0.81766]
[1751376909068,1.4089,2445.3,2445.1,5.75546263]
[1751376909363,1.4089,2445.3,2445.1,6.57313263]
[1751376909571,1.4089,2445.3,2445.2,0.81766]
[1751376909974,1.4089,2445.3,2445.1,6.57313263]
[1751376910272,1.4089,2445.3,2445.2,0.81766]
[1751376910672,1.4089,2445.3,2444.9,0.81774]
[1751376910875,1.3735,2445.2,2445.0,0.81773]
[1751376911174,2.19117,2445.2,2444.9,0.81774]
[1751376911476,1.3735,2445.2,2445.0,0.81772]
[1751376911776,1.3735,2445.2,2444.8,6.98229263]
[1751376911970,1.3735,2445.2,2444.7,3.47216]
[1751376912166,1.3735,2445.2,2445.1,0.8177]
[1751376912371,2.19117,2445.2,2445.0,0.8177]
[1751376912568,0.81773,2445.0,2444.8,0.81778]
[1751376912773,0.81771,2445.1,2444.9,0.81775]
[1751376912975,1.3554,2445.0,2444.9,0.81775]
[1751376913172,1.3554,2445.0,2444.7,2.04458]
[1751376913480,0.7048,2444.9,2444.8,0.8178]
[1751376913979,0.7048,2444.9,2444.4,11.774]
[1751376914276,0.02045,2444.7,2444.6,0.81792]
[1751376914678,0.72395,2444.7,2444.6,0.81792]
[1751376914874,0.72395,2444.7,2444.3,2.04491]
[1751376914875,2.16490178,2444.7,2444.1,2.04506]
[1751376915069,0.81791,2444.5,2444.3,0.81795]
[1751376915277,1.47595356,2444.4,2444.3,0.81795]
[1751376915479,0.72455356,2444.4,2444.3,0.81795]
[1751376916975,0.72455356,2444.4,2444.2,0.81799]
[1751376917174,1.47595356,2444.3,2444.1,0.81801]
[1751376917374,1.47595356,2444.3,2444.2,0.818]
[1751376917576,1.47769724,2444.3,2444.2,0.818]
[1751376917980,1.47944092,2444.3,2444.2,0.818]
[1751376918381,0.675,2444.4,2444.3,0.7631754]
[1751376920184,0.675,2444.4,2443.9,9.12641263]
[1751376920386,0.675,2444.4,2444.0,2.04514]
[1751376920588,0.675,2444.4,2444.3,0.81796]
[1751376920887,0.675,2444.4,2444.2,0.81798]
[1751376921084,0.675,2444.4,2444.0,1.4275]
[1751376921280,0.675,2444.4,2443.9,7.80070263]
[1751376921481,1.49294,2444.4,2444.1,0.81802]
[1751376921679,0.81797,2444.3,2444.0,0.81804]
[1751376921880,0.675,2444.4,2443.9,5.75546263]
[1751376922083,2.24567,2444.3,2444.0,0.81806]
[1751376922279,1.4277,2444.3,2444.1,0.81802]
[1751376922484,1.4277,2444.3,2444.2,0.818]
[1751376922683,1.4277,2444.3,2444.1,0.818]